bitfinex-derivatives/quotes_SOLF0:USTF0_20240816
["timestamp","ask_amount","ask_price","bid_price","bid_amount"]
[1723793115203,10.66,144.14,144.09,3.4694]
[1723793115408,0.04374092,144.12,144.09,0.04911209]
[1723793115700,0.04374092,144.12,144.11,10.66]
[1723793115906,3.468,144.16,144.11,13.2275]
[1723793116304,3.468,144.16,144.12,3.4686]
[1723793116494,10.66,144.18,144.12,10.66]
[1723793116696,4.5,144.21,144.14,10.66]
[1723793116900,10.66,144.2,144.14,10.66]
[1723793117116,0.04784444,144.19,144.16,0.04780701]
[1723793117407,0.04784444,144.19,144.16,10.70780701]
[1723793118003,0.04784444,144.19,144.16,0.04780701]
[1723793118398,0.04784444,144.19,144.16,3.51550701]
[1723793118601,0.04784444,144.19,144.16,0.04780701]
[1723793118803,0.04784444,144.19,144.17,3.4675]
[1723793119200,0.04784444,144.19,144.17,26.63]
[1723793119400,0.04784444,144.19,144.18,3.4673]
[1723793119606,3.4662,144.23,144.17,29.1495]
[1723793120005,3.466,144.24,144.17,29.1495]
[1723793120203,3.466,144.24,144.18,26.63]
[1723793120506,0.0531632,144.22,144.21,3.4666]
[1723793120806,31.13,144.29,144.2,26.63]
[1723793121006,31.13,144.29,144.2,26.68037073]
[1723793121007,0.04484963,144.23,144.2,26.68037073]
[1723793121214,0.04484963,144.23,144.21,3.4665]
[1723793121515,0.04752381,144.23,144.21,3.51909998]
[1723793121810,0.04752381,144.23,144.22,3.4664]
[1723793123709,3.4653,144.27,144.23,3.4661]
[1723793124012,0.0973,144.36,144.22,26.63]
[1723793124211,31.38479149,144.35,144.27,3.465]
[1723793124517,0.25479149,144.34,144.27,3.465]
[1723793124809,3.51467403,144.32,144.29,0.04929244]
[1723793125710,3.4642,144.31,144.29,0.04929244]
[1723793127207,3.4644,144.3,144.29,0.04929244]
[1723793127910,30.0944,144.3,144.29,0.04929244]
[1723793130516,3.4654,144.26,144.23,1.3062]
[1723793130716,4.5,144.31,144.23,1.3062]
[1723793130919,3.46938019,144.35,144.23,27.9362]
[1723793130920,26.63,144.33,144.23,27.9362]
[1723793131111,3.4644,144.31,144.25,26.63]
[1723793131509,0.05220357,144.29,144.27,0.0438131]
[1723793131713,0.05220357,144.29,144.27,3.5089131]
[1723793135312,0.05220357,144.29,144.27,26.6738131]
[1723793137118,0.05220357,144.29,144.27,30.1389131]
[1723793138620,0.05220357,144.29,144.28,3.4649]
[1723793139323,0.05220357,144.29,144.27,26.6738131]
[1723793139817,0.05220357,144.29,144.27,30.1389131]
[1723793141726,0.05220357,144.29,144.28,3.4649]
[1723793144717,0.05220357,144.29,144.27,30.1389131]
[1723793147029,0.05220357,144.29,144.28,3.4649]
[1723793149039,0.05220357,144.29,144.27,30.1389131]
[1723793149228,0.05220357,144.29,144.27,0.0438131]
[1723793149635,0.05220357,144.29,144.27,3.5089131]
[1723793150440,0.05220357,144.29,144.27,0.0438131]
[1723793151231,0.05220357,144.29,144.27,3.5090131]
[1723793153036,0.05220357,144.29,144.28,3.4649]
[1723793154233,1.2344,144.37,144.31,3.4642]
[1723793154432,5.7344,144.37,144.31,3.4642]
[1723793154637,80.08149512,144.39,144.3,26.63]
[1723793154837,83.59354731,144.39,144.3,26.63]
[1723793155042,4.5,144.4,144.32,26.63]
[1723793155243,8.03041813,144.4,144.32,26.63]
[1723793155438,0.05098103,144.37,144.35,0.04933567]
[1723793157144,3.51388103,144.37,144.35,0.04933567]
[1723793158348,3.463,144.36,144.35,0.04933567]
[1723793158544,0.05098103,144.37,144.35,0.04933567]
[1723793158943,3.463,144.36,144.35,0.04933567]
[1723793160742,31.13,144.38,144.29,1.324]
[1723793161249,31.13,144.38,144.27,26.63]
[1723793161250,3.464,144.32,144.27,26.63]
[1723793161445,26.63,144.36,144.29,3.4645]
[1723793161848,3.464,144.32,144.31,0.04849664]
[1723793163446,3.4638,144.33,144.31,0.04849664]
[1723793163842,0.0464477,144.34,144.31,0.04849664]
[1723793164048,4.5464477,144.34,144.31,0.04849664]
[1723793164445,3.464,144.32,144.31,0.04849664]
[1723793164651,4.5464477,144.34,144.31,0.04849664]
[1723793164952,3.4639,144.33,144.31,0.04849664]
[1723793168853,0.0464477,144.34,144.31,26.67849664]
[1723793169250,0.0464477,144.34,144.33,3.4637]
[1723793169551,0.0464477,144.34,144.33,33.60803719]
[1723793170049,3.4625,144.38,144.34,3.4634]
[1723793170854,3.4625,144.38,144.35,3.4632]
[1723793171255,3.5079743,144.38,144.35,3.50704737]
[1723793171453,3.5079743,144.38,144.35,0.04384737]
[1723793171756,0.0454743,144.38,144.35,0.04384737]
[1723793172153,3.463,144.36,144.35,0.04384737]
[1723793176661,7.943,144.36,144.35,0.04384737]
[1723793178566,7.943,144.36,144.28,5.7834]
[1723793178567,3.4642,144.31,144.28,5.7834]
[1723793178857,3.39317371,144.33,144.26,14.88874099]
[1723793179059,3.4641,144.32,144.28,3.4648]
[1723793180057,0.04866042,144.31,144.29,0.04786195]
[1723793180457,0.04866042,144.31,144.29,3.51256195]
[1723793182254,0.04866042,144.31,144.29,0.04786195]
[1723793183454,0.04866042,144.31,144.3,2.79783482]
[1723793183660,0.04866042,144.31,144.3,6.26223482]
[1723793184364,0.04866042,144.31,144.3,15.10607843]
[1723793184758,0.04866042,144.31,144.3,6.26223482]
[1723793185353,0.04866042,144.31,144.3,11.00564556]
[1723793185560,0.04866042,144.31,144.3,2.79783482]
[1723793185961,0.04866042,144.31,144.3,19.84959506]
[1723793186363,0.04866042,144.31,144.3,6.26223482]
[1723793186565,0.04866042,144.31,144.3,19.84986721]
[1723793187969,0.04866042,144.31,144.3,33.23463654]
[1723793190373,0.04866042,144.31,144.3,49.39098828]
[1723793190571,4.5,144.38,144.33,3.4637]
[1723793190868,4.5,144.38,144.34,8.84279369]
[1723793191063,4.5,144.38,144.35,7.53941967]
[1723793191264,4.5,144.38,144.32,26.63]
[1723793191463,4.5,144.38,144.33,37.07624696]
[1723793191659,0.0464546,144.36,144.34,7.5884574]
[1723793191864,0.0464546,144.36,144.35,7.53941966]
[1723793192063,0.0464546,144.36,144.35,16.38221335]
[1723793197272,3.5094546,144.36,144.35,16.38221335]
[1723793197677,0.0464546,144.36,144.35,16.38221335]
[1723793198572,0.0464546,144.36,144.35,29.76464632]
[1723793200177,3.5094546,144.36,144.35,29.76464632]
[1723793200378,3.5094546,144.36,144.35,16.38221335]
[1723793200879,3.5094546,144.36,144.35,2.79715118]
[1723793201976,3.5094546,144.36,144.35,16.38327889]
[1723793202571,3.5094546,144.36,144.35,2.79715118]
[1723793205881,14.1594546,144.36,144.35,2.79715118]
[1723793206472,14.1594546,144.36,144.35,0.77455118]
[1723793206672,0.0464546,144.36,144.26,1.3017]
[1723793206872,10.65,144.31,144.28,45.93417556]
[1723793207073,4.48,144.32,144.29,45.93417556]
[1723793207375,7.9441,144.32,144.3,45.93417556]
[1723793207578,7.9441,144.32,144.31,29.77539374]
[1723793207782,7.99457775,144.32,144.31,29.77539374]
[1723793208483,0.05047775,144.32,144.31,29.77539374]
[1723793208679,0.05047775,144.32,144.31,45.93277784]
[1723793209282,0.05047775,144.32,144.31,29.77539374]
[1723793210678,0.05047775,144.32,144.31,29.77146199]
[1723793212583,3.4636,144.34,144.31,29.77146199]
[1723793212584,3.4636,144.34,144.31,45.9278123]
[1723793212880,3.4636,144.34,144.32,45.9278123]
[1723793213083,3.4636,144.34,144.33,45.9278123]
[1723793214882,3.4636,144.34,144.33,29.77146199]
[1723793215083,3.464,144.32,144.3,0.04751508]
[1723793215281,3.464,144.32,144.31,29.75328066]
[1723793215483,4.53013195,144.35,144.31,29.75328066]
[1723793215685,3.4635,144.34,144.32,45.91054446]
[1723793215886,3.4635,144.34,144.33,45.91054446]
[1723793216380,3.4635,144.34,144.33,22.22958337]
[1723793216685,3.4638,144.33,144.3,0.04751508]
[1723793216873,3.4638,144.33,144.31,45.90783694]
[1723793217075,3.4635,144.34,144.32,45.90783694]
[1723793217274,4.53013195,144.35,144.33,7.52310074]
[1723793217478,4.53013195,144.35,144.34,16.3666138]
[1723793217677,4.53013195,144.35,144.34,29.75052195]
[1723793217877,7.99363195,144.35,144.34,29.75052195]
[1723793219289,34.62363195,144.35,144.34,29.75052195]
[1723793219490,34.62363195,144.35,144.34,11.63314032]
[1723793220184,7.99363195,144.35,144.34,29.75191542]
[1723793221083,7.99363195,144.35,144.34,16.36697805]
[1723793221284,7.99363195,144.35,144.34,29.75180058]
[1723793221492,7.99363195,144.35,144.34,16.36697805]
[1723793223085,7.99363195,144.35,144.34,29.75063209]
[1723793223289,7.99363195,144.35,144.34,16.36697805]
[1723793223788,11.43832684,144.35,144.34,7.52346499]
[1723793223991,7.99363195,144.35,144.34,16.36713902]
[1723793224186,4.53013195,144.35,144.34,16.36713902]
[1723793224387,4.53013195,144.35,144.34,45.90579992]
[1723793224587,4.53013195,144.35,144.34,29.75072413]
[1723793225091,4.53013195,144.35,144.34,45.9061969]
[1723793225285,4.53013195,144.35,144.33,0.04471335]
[1723793225594,4.53013195,144.35,144.34,45.90552875]
[1723793225788,4.53013195,144.35,144.34,24.99766327]
[1723793225988,4.53013195,144.35,144.34,32.51973693]
[1723793226293,4.53013195,144.35,144.34,45.90287152]
[1723793226490,4.53013195,144.35,144.34,20.90520825]
[1723793226690,4.53013195,144.35,144.34,45.90341843]
[1723793227195,7.99333195,144.35,144.34,45.90341843]
[1723793227393,3.51333195,144.35,144.34,45.90341843]
[1723793229597,3.51333195,144.35,144.34,32.52052921]
[1723793229801,3.51333195,144.35,144.34,45.90408636]
[1723793231094,3.51333195,144.35,144.34,29.74892448]
[1723793231296,3.51333195,144.35,144.34,45.90475054]
[1723793231496,3.51333195,144.35,144.34,29.74892448]
[1723793231903,14.16333195,144.35,144.34,29.74892448]
[1723793234995,3.4635,144.34,144.33,0.04471335]
[1723793235189,10.65,144.34,144.33,8.84505727]
[1723793235400,10.65,144.34,144.28,1.3178]
[1723793235606,10.65,144.31,144.28,1.3178]
[1723793236298,3.4645,144.3,144.28,1.36871911]
[1723793236993,3.5153687,144.31,144.28,1.36871911]
[1723793237795,0.0510687,144.31,144.28,1.36871911]
[1723793237996,0.0510687,144.31,144.28,4.83361911]
[1723793238505,3.5152687,144.31,144.28,1.36871911]
[1723793238705,0.0510687,144.31,144.28,12.01871911]
[1723793238892,0.0510687,144.31,144.3,10.65]
[1723793239092,3.4633,144.35,144.3,10.65]
[1723793239399,3.4633,144.35,144.31,10.65]
[1723793239593,3.4633,144.35,144.31,14.114]
[1723793240405,0.05335399,144.34,144.32,0.05080848]
[1723793240596,0.05335399,144.34,144.32,3.51470848]
[1723793241202,0.05335399,144.34,144.32,5.99080848]
[1723793241397,3.4626,144.38,144.34,3.4633]
[1723793241700,4.48,144.39,144.35,10.65]
[1723793242001,15.13,144.4,144.34,3.4633]
[1723793242404,0.04994707,144.38,144.36,0.05165607]
[1723793245606,0.04994707,144.38,144.36,10.70165607]
[1723793245801,4.48,144.41,144.36,10.70165607]
[1723793246001,4.48,144.42,144.37,11.8702]
[1723793246200,4.48,144.42,144.38,3.4625]
[1723793246401,4.48,144.42,144.37,13.1864]
[1723793246904,0.04574419,144.41,144.39,3.4622]
[1723793247296,0.04574419,144.41,144.4,2.74419895]
[1723793247495,0.04574419,144.41,144.4,16.85629895]
[1723793247695,4.48,144.46,144.4,13.39419895]
[1723793247905,4.48,144.46,144.42,10.65]
[1723793248205,4.48,144.46,144.43,2.74419895]
[1723793248405,4.48,144.46,144.44,2.74419895]
[1723793248595,10.65,144.48,144.45,2.74419895]
[1723793248798,10.65,144.48,144.42,10.65]
[1723793248998,0.04986092,144.46,144.44,0.05291591]
[1723793249199,0.04986092,144.46,144.45,2.74344211]
[1723793250308,0.04986092,144.46,144.44,0.05291591]
[1723793250702,0.04986092,144.46,144.45,2.74336537]
[1723793250908,0.04986092,144.46,144.45,2.74344085]
[1723793251409,0.04986092,144.46,144.44,4.80611591]
[1723793251601,0.04986092,144.46,144.45,2.74326658]
[1723793253411,0.04986092,144.46,144.44,1.34501591]
[1723793254811,0.04986092,144.46,144.44,4.80611591]
[1723793255708,0.04986092,144.46,144.44,1.34501591]
[1723793256305,0.04986092,144.46,144.44,0.05291591]
[1723793257506,3.51066092,144.46,144.44,0.05291591]
[1723793258313,0.04986092,144.46,144.44,0.05291591]
[1723793258612,3.51066092,144.46,144.44,0.05291591]
[1723793259314,0.04986092,144.46,144.44,0.05291591]
[1723793260511,3.4609,144.45,144.44,0.05291591]
[1723793260810,0.04986092,144.46,144.44,0.05291591]
[1723793262715,3.4609,144.45,144.44,0.05291591]
[1723793263910,0.04986092,144.46,144.44,0.05291591]
[1723793264417,3.4609,144.45,144.44,0.05291591]
[1723793266112,3.51046092,144.46,144.44,0.05291591]
[1723793267814,3.4609,144.45,144.44,0.05291591]
[1723793270030,3.51046092,144.46,144.44,0.05291591]
[1723793271526,3.4609,144.45,144.44,0.05291591]
[1723793282330,7.9409,144.45,144.44,0.05291591]
[1723793288956,18.5709,144.45,144.44,0.05291591]
[1723793291146,7.9409,144.45,144.44,0.05291591]
[1723793296953,11.39740429,144.45,144.44,0.05291591]
[1723793300748,22.02740429,144.45,144.44,0.05291591]
[1723793303856,22.02740429,144.45,144.36,16.09308419]
[1723793303857,18.56650429,144.45,144.28,117.22161328]
[1723793304053,10.63,144.38,144.33,2.5305]
[1723793304255,3.39510272,144.37,144.34,29.54273092]
[1723793304458,3.39510272,144.37,144.35,29.54273092]
[1723793304654,3.39510272,144.37,144.36,16.21851308]
[1723793304854,3.39510272,144.37,144.33,2.5305]
[1723793304855,3.44301166,144.37,144.35,0.05288223]
[1723793305053,3.44301166,144.37,144.36,2.74533662]
[1723793305350,6.90581166,144.37,144.36,2.74533662]
[1723793306345,6.90581166,144.37,144.35,0.05288223]
[1723793306346,3.463,144.36,144.35,0.05288223]
[1723793306550,3.463,144.36,144.35,7.47858709]
[1723793306753,3.463,144.36,144.35,2.79833964]
[1723793306948,3.463,144.36,144.35,7.4786741]
[1723793307152,3.463,144.36,144.35,2.79833964]
[1723793307353,3.463,144.36,144.35,7.47874495]
[1723793309790,3.463,144.36,144.35,7.47838883]
[1723793313269,3.463,144.36,144.35,2.79826339]
[1723793313784,3.56116914,144.37,144.29,3.767]
[1723793313961,3.56116914,144.37,144.3,7.42752574]
[1723793314260,3.464,144.32,144.31,2.74615775]
[1723793314467,4.48,144.32,144.25,8.79793987]
[1723793314653,14.0523923,144.31,144.26,16.20943725]
[1723793314858,0.05176261,144.3,144.27,7.46259806]
[1723793315057,3.51636261,144.3,144.28,7.41149738]
[1723793315260,3.51636261,144.3,144.29,7.41149738]
[1723793315955,14.14636261,144.3,144.29,2.73876867]
[1723793316558,3.4649,144.28,144.27,0.05110068]
[1723793316757,7.9449,144.28,144.27,7.46332834]
[1723793317364,15.11,144.28,144.19,3.4669]
[1723793317662,10.63,144.26,144.21,2.4584]
[1723793317859,10.63,144.26,144.22,8.68663377]
[1723793318165,3.4657,144.25,144.23,7.4137785]
[1723793318368,3.4657,144.25,144.21,2.4584]
[1723793318670,3.51516598,144.25,144.23,0.04933279]
[1723793318967,3.51516598,144.25,144.24,2.73179359]
[1723793319157,3.51516598,144.25,144.23,0.04933279]
[1723793319862,0.04946598,144.25,144.23,0.04933279]
[1723793320058,0.04946598,144.25,144.24,2.73150717]
[1723793320264,0.04946598,144.25,144.23,0.04933279]
[1723793320564,0.04946598,144.25,144.24,2.73133709]
[1723793320763,3.51516598,144.25,144.23,0.04933279]
[1723793321565,3.4659,144.24,144.23,0.04933279]
[1723793324165,0.04946598,144.25,144.23,0.04933279]
[1723793324371,3.51516598,144.25,144.23,0.04933279]
[1723793326464,3.4659,144.24,144.23,0.04933279]
[1723793328970,10.67946598,144.25,144.23,0.04933279]
[1723793328971,3.51516598,144.25,144.23,0.04933279]
[1723793329672,0.04946598,144.25,144.23,0.04933279]
[1723793330066,0.04946598,144.25,144.23,3.51533279]
[1723793331266,0.04946598,144.25,144.23,0.04933279]
[1723793331464,10.67946598,144.25,144.23,0.04933279]
[1723793332268,3.51526598,144.25,144.23,0.04933279]
[1723793332472,0.04946598,144.25,144.23,0.04933279]
[1723793332868,0.04946598,144.25,144.23,3.51533279]
[1723793335269,1.2433,144.36,144.24,10.63]
[1723793335571,10.63,144.31,144.24,10.63]
[1723793335877,10.63,144.28,144.25,4.796]
[1723793336265,10.63,144.27,144.25,1.3304]
[1723793336470,10.63,144.27,144.25,1.37545819]
[1723793339675,10.63,144.27,144.25,4.84095819]
[1723793343872,10.63,144.27,144.25,0.04505819]
[1723793346078,15.11,144.27,144.21,7.2704]
[1723793346377,10.63,144.24,144.21,7.2704]
[1723793347175,10.6763601,144.24,144.21,7.31825454]
[1723793348269,10.6763601,144.24,144.22,3.4664]
[1723793348473,10.6763601,144.24,144.21,3.85175454]
[1723793348779,14.1422601,144.24,144.21,3.85175454]
[1723793348986,14.1422601,144.24,144.21,7.31825454]
[1723793350682,10.6763601,144.24,144.21,7.31825454]
[1723793353478,10.6763601,144.24,144.22,3.4662]
[1723793353979,10.6763601,144.24,144.21,0.04785454]
[1723793354284,10.63,144.22,144.21,0.04785454]
[1723793354479,10.63,144.23,144.21,0.04785454]
[1723793354683,0.0463601,144.24,144.21,0.04785454]
[1723793354885,10.6763601,144.24,144.21,0.04785454]
[1723793355184,14.1423601,144.24,144.21,3.51425454]
[1723793355383,10.6763601,144.24,144.21,3.51425454]
[1723793356281,10.6763601,144.24,144.22,3.4663]
[1723793357883,10.6763601,144.24,144.21,0.04785454]
[1723793358789,10.6763601,144.24,144.21,3.51425454]
[1723793358987,10.6763601,144.24,144.21,0.04785454]
[1723793359985,10.6763601,144.24,144.21,3.51435454]
[1723793361021,10.6763601,144.24,144.21,0.04785454]
[1723793361203,10.63,144.22,144.21,0.04785454]
[1723793363281,3.5123601,144.24,144.21,0.04785454]
[1723793363782,10.63,144.23,144.21,0.04785454]
[1723793364578,0.0463601,144.24,144.21,0.04785454]
[1723793364987,0.0463601,144.24,144.22,2.73161133]
[1723793365590,0.0463601,144.24,144.21,1.32525454]
[1723793365885,0.0463601,144.24,144.21,4.79175454]
[1723793366087,0.0463601,144.24,144.21,1.32525454]
[1723793366482,0.0463601,144.24,144.22,3.4662]
[1723793366887,0.0463601,144.24,144.21,1.32525454]
[1723793367278,0.0463601,144.24,144.22,3.4662]
[1723793369689,4.48,144.3,144.23,13.36172074]
[1723793369891,10.63,144.3,144.24,2.73172074]
[1723793370094,10.63,144.3,144.27,3.465]
[1723793370694,10.63,144.31,144.28,3.4649]
[1723793370889,0.04527657,144.3,144.28,3.4649]
[1723793373093,0.04527657,144.3,144.29,2.73097728]
[1723793373622,0.04527657,144.3,144.29,2.7310853]
[1723793373822,0.04527657,144.3,144.28,3.4649]
[1723793374033,0.04527657,144.3,144.29,6.19569083]
[1723793375384,0.04527657,144.3,144.29,10.85884528]
[1723793376097,0.04527657,144.3,144.29,19.65700269]
[1723793376698,0.04527657,144.3,144.29,32.98629971]
[1723793376899,0.04527657,144.3,144.29,19.65700269]
[1723793377194,0.04527657,144.3,144.29,32.98636578]
[1723793377717,0.04527657,144.3,144.29,24.18820837]
[1723793377995,0.04527657,144.3,144.29,49.08460966]
[1723793378197,0.04527657,144.3,144.29,10.85884528]
[1723793378397,0.04527657,144.3,144.29,49.08415609]
[1723793379094,14.0936,144.34,144.3,3.4643]
[1723793379397,14.0936,144.34,144.31,29.51932238]
[1723793379596,14.0936,144.34,144.32,16.19108918]
[1723793379793,14.0936,144.34,144.33,16.19108918]
[1723793382419,10.63,144.34,144.32,0.04496761]
[1723793382597,10.63,144.34,144.33,16.18875406]
[1723793386401,14.0935,144.34,144.33,16.18875406]
[1723793387126,14.0935,144.34,144.32,0.04496761]
[1723793387405,14.0935,144.34,144.33,16.18895713]
[1723793387703,14.0935,144.34,144.33,7.39220528]
[1723793388305,14.0935,144.34,144.33,7.39220258]
[1723793392128,3.4637,144.33,144.32,0.04496761]
[1723793392298,14.0937,144.33,144.32,16.23394481]
[1723793395406,0.0475555,144.35,144.21,15.09]
[1723793395604,7.8684691,144.36,144.22,39.50342899]
[1723793395605,10.63,144.28,144.22,39.50342899]
[1723793395909,10.63,144.28,144.25,3.4656]
[1723793396098,10.63,144.28,144.26,22.12861613]
[1723793396302,10.67797232,144.28,144.27,8.79825606]
[1723793396603,10.67797232,144.28,144.26,0.0440841]
[1723793396809,14.14287232,144.28,144.26,0.0440841]
[1723793399109,14.14287232,144.28,144.27,8.785923]
[1723793400313,14.14287232,144.28,144.26,0.0440841]
[1723793400709,0.04797232,144.28,144.26,3.5093841]
[1723793400912,0.04797232,144.28,144.27,8.78588283]
[1723793401129,0.04797232,144.28,144.26,0.0440841]
[1723793401406,0.04797232,144.28,144.27,12.25049972]
[1723793402703,0.04797232,144.28,144.27,25.56541857]
[1723793403118,0.04797232,144.28,144.27,12.25049972]
[1723793403841,0.04797232,144.28,144.27,3.4652]
[1723793404031,0.04797232,144.28,144.27,12.25061643]
[1723793404913,4.46,144.34,144.29,3.4645]
[1723793405105,4.46,144.34,144.3,22.09775116]
[1723793405307,3.4639,144.33,144.29,3.4645]
[1723793405509,3.4639,144.33,144.3,13.42053029]
[1723793405705,3.4639,144.33,144.31,13.42052902]
[1723793405903,3.51513504,144.33,144.32,4.63669593]
[1723793406319,0.05123504,144.33,144.32,8.78360017]
[1723793406615,0.05123504,144.33,144.32,13.41993097]
[1723793407314,0.05123504,144.33,144.32,4.6363308]
[1723793407516,0.05123504,144.33,144.32,8.78333342]
[1723793407816,0.05123504,144.33,144.32,16.12828416]
[1723793408296,0.05123504,144.33,144.32,8.78333342]
[1723793408513,0.05123504,144.33,144.32,16.12833326]
[1723793410011,0.05123504,144.33,144.32,19.59233326]
[1723793410218,0.05123504,144.33,144.32,32.90355573]
[1723793410915,0.05123504,144.33,144.32,29.43955573]
[1723793412834,0.05123504,144.33,144.32,7.34499984]
[1723793413017,0.05123504,144.33,144.32,29.4392188]
[1723793416835,0.05123504,144.33,144.32,22.09421896]
[1723793417124,0.05123504,144.33,144.32,29.43853288]
[1723793419919,0.05123504,144.33,144.32,29.43852936]
[1723793420118,0.05123504,144.33,144.32,32.90252936]
[1723793421025,27.72,144.45,144.32,40.06852936]
[1723793421224,10.63,144.41,144.34,10.63]
[1723793421451,14.092,144.41,144.37,3.4627]
[1723793421732,14.092,144.41,144.38,11.48831299]
[1723793422025,14.092,144.41,144.39,2.70724204]
[1723793422226,14.092,144.41,144.38,0.0488427]
[1723793422227,14.13573935,144.41,144.38,0.0488427]
[1723793422430,14.13573935,144.41,144.39,2.7070504]
[1723793422625,14.13573935,144.41,144.38,0.0488427]
[1723793422826,14.13573935,144.41,144.39,2.70701267]
[1723793423062,14.13573935,144.41,144.38,0.0488427]
[1723793423246,14.13573935,144.41,144.39,2.7070106]
[1723793423430,14.13573935,144.41,144.38,0.0488427]
[1723793423633,14.13573935,144.41,144.39,2.70697494]
[1723793423830,10.67373935,144.41,144.38,0.0488427]
[1723793424130,10.67373935,144.41,144.39,2.7069938]
[1723793424341,10.67373935,144.41,144.38,0.0488427]
[1723793424536,10.67373935,144.41,144.39,2.70695208]
[1723793424741,14.13553935,144.41,144.38,0.0488427]
[1723793424938,14.13553935,144.41,144.39,2.70691725]
[1723793425137,14.13553935,144.41,144.38,0.0488427]
[1723793426356,10.67373935,144.41,144.38,3.5113427]
[1723793426527,0.04373935,144.41,144.38,0.0488427]
[1723793426739,0.04373935,144.41,144.39,2.70666278]
[1723793426935,0.04373935,144.41,144.38,0.0488427]
[1723793427135,0.04373935,144.41,144.39,10.80167758]
[1723793427338,0.04373935,144.41,144.4,2.70658913]
[1723793428236,3.4607,144.46,144.42,3.4616]
[1723793428440,10.63,144.46,144.39,10.63]
[1723793428739,10.63,144.46,144.4,16.1158901]
[1723793428931,14.0908,144.46,144.41,19.5774901]
[1723793429134,14.0908,144.46,144.42,4.00062872]
[1723793429335,3.4604,144.47,144.43,3.4612]
[1723793429536,0.0509287,144.45,144.43,3.51378816]
[1723793430140,3.4602,144.48,144.44,3.4611]
[1723793430476,3.4602,144.48,144.44,4.7821]
[1723793431243,10.63,144.48,144.44,1.321]
[1723793431443,10.63,144.46,144.43,0.05258816]
[1723793431642,0.04714554,144.47,144.39,14.73046654]
[1723793431643,10.63,144.44,144.39,14.73046654]
[1723793431846,10.63,144.42,144.4,2.70600776]
[1723793432147,10.67887538,144.42,144.4,0.04507485]
[1723793432742,0.04887538,144.42,144.4,0.04507485]
[1723793432945,0.04887538,144.42,144.41,3.4618]
[1723793433844,10.63,144.46,144.41,3.4618]
[1723793433845,4.46,144.49,144.42,3.4615]
[1723793434148,10.63,144.47,144.42,4.7475]
[1723793435103,10.63,144.47,144.43,0.04728976]
[1723793435546,3.4607,144.46,144.43,0.04728976]
[1723793436147,10.63,144.47,144.43,0.04728976]
[1723793436740,3.461,144.45,144.43,0.04728976]
[1723793437047,10.63,144.46,144.43,0.04728976]
[1723793437252,3.4611,144.44,144.43,0.04728976]
[1723793438151,14.0911,144.44,144.43,0.04728976]
[1723793439951,3.4611,144.44,144.43,0.04728976]
[1723793441354,3.4622,144.4,144.37,1.342]
[1723793441846,14.0919,144.41,144.37,1.342]
[1723793442046,3.4619,144.41,144.37,1.342]
[1723793442248,10.63,144.43,144.37,15.4346]
[1723793442449,0.04947052,144.4,144.38,0.04458515]
[1723793443856,0.04947052,144.4,144.38,3.50708515]
[1723793446256,0.04947052,144.4,144.38,0.04458515]
[1723793450660,3.51157052,144.4,144.38,0.04458515]
[1723793454065,0.04947052,144.4,144.38,0.04458515]
[1723793459568,0.04947052,144.4,144.38,3.50708515]
[1723793459768,0.04947052,144.4,144.39,16.11812896]
[1723793460170,0.04947052,144.4,144.39,19.58042896]
[1723793460672,3.4615,144.43,144.4,3.462]
[1723793460865,3.4615,144.43,144.41,2.70641539]
[1723793461065,3.4615,144.43,144.4,14.092]
[1723793461261,3.4615,144.43,144.41,2.70620228]
[1723793461467,3.4615,144.43,144.4,14.092]
[1723793461663,3.4615,144.43,144.41,2.7062234]
[1723793461860,3.4612,144.44,144.4,14.092]
[1723793462060,15.09,144.46,144.41,2.7062234]
[1723793462262,15.09,144.46,144.4,14.092]
[1723793462459,15.09,144.46,144.42,0.05113478]
[1723793462663,3.4612,144.44,144.42,0.05113478]
[1723793464075,15.09,144.46,144.42,0.05113478]
[1723793464570,3.4612,144.44,144.42,0.05113478]
[1723793466466,3.4612,144.44,144.43,2.7062014]
[1723793467475,3.4612,144.44,144.43,11.48465904]
[1723793468485,3.4612,144.44,144.42,0.05113478]
[1723793468779,4.46,144.49,144.43,16.11690206]
[1723793468971,15.09,144.49,144.44,16.11690206]
[1723793469172,15.09,144.49,144.45,16.11560491]
[1723793469373,15.09,144.49,144.46,2.70618151]
[1723793469565,15.09,144.49,144.46,0.05190195]
[1723793470073,3.4604,144.47,144.46,0.05190195]